bitfinex/quotes_ETHUSD_20250425
["timestamp","ask_amount","ask_price","bid_price","bid_amount"]
[1745540177531,11.3254761,1766.0,1765.7,4.789]
[1745540177835,5.66269888,1766.0,1765.7,4.789]
[1745540178010,5.66295829,1765.9,1765.7,4.789]
[1745540180004,5.66315551,1765.8,1765.4,10.4532833]
[1745540180198,5.66348607,1765.7,1765.5,0.8015]
[1745540180399,5.66336526,1765.8,1765.5,0.8015]
[1745540180844,5.6636036,1765.7,1765.5,0.8015]
[1745540181007,5.66334067,1765.8,1765.5,0.8015]
[1745540181505,5.66348309,1765.7,1765.5,0.8015]
[1745540181702,5.66335653,1765.8,1765.5,0.8015]
[1745540183418,5.66315551,1765.8,1765.5,0.8015]
[1745540184938,5.66361306,1765.7,1765.5,0.8015]
[1745540185740,6.87154815,1765.9,1765.5,0.8015]
[1745540185930,1.20870572,1765.9,1765.5,6.46541529]
[1745540186136,6.87158478,1765.9,1765.5,6.46541529]
[1745540186841,5.66287906,1765.9,1765.5,6.46541529]
[1745540187742,5.66318096,1765.8,1765.5,0.8015]
[1745540187932,5.66349201,1765.7,1765.5,0.8015]
[1745540188949,5.66370281,1765.7,1765.4,4.789]
[1745540190524,5.66329014,1765.8,1765.4,10.45330782]
[1745540190750,5.66329014,1765.8,1765.5,0.7848]
[1745540191517,5.66347798,1765.7,1765.5,0.7848]
[1745540195048,5.66324895,1765.8,1765.5,0.7848]
[1745540195612,5.66348917,1765.7,1765.5,0.7848]
[1745540196117,5.66348917,1765.7,1764.9,0.764]
[1745540196118,0.783,1765.5,1764.9,0.764]
[1745540196415,5.66562005,1765.1,1764.7,0.764]
[1745540196648,5.66596373,1765.0,1764.7,0.764]
[1745540196846,5.66604501,1764.9,1764.7,0.764]
[1745540197155,5.66663198,1764.8,1764.4,5.553]
[1745540197341,1.13319486,1764.9,1764.4,5.553]
[1745540197342,5.66689196,1764.7,1764.4,5.553]
[1745540197527,11.33452438,1764.6,1764.4,5.553]
[1745540197731,5.66722195,1764.6,1764.4,5.553]
[1745540198251,5.66722195,1764.6,1764.4,4.789]
[1745540198549,5.66732785,1764.5,1764.4,4.789]
[1745540198717,5.66732785,1764.5,1764.0,0.8259]
[1745540198718,5.66787371,1764.4,1764.0,0.8259]
[1745540198918,5.66787371,1764.4,1764.0,5.6149]
[1745540198919,5.66811301,1764.3,1764.0,5.6149]
[1745540199114,0.8294,1764.5,1764.0,5.6149]
[1745540199340,5.66861289,1764.1,1764.0,4.789]
[1745540199668,5.66847095,1764.2,1764.0,4.789]
[1745540200264,5.66861289,1764.1,1764.0,4.789]
[1745540201124,5.66842433,1764.2,1764.0,4.789]
[1745540201449,5.66779085,1764.4,1764.0,5.2679]
[1745540201661,5.66700668,1764.6,1764.1,1.54392846]
[1745540202025,5.66700668,1764.6,1764.1,7.21240615]
[1745540202442,5.66721691,1764.6,1764.1,7.21240615]
[1745540202642,5.66700668,1764.6,1764.2,0.72124061]
[1745540202857,5.66722754,1764.6,1764.2,0.72124061]
[1745540203266,6.46988272,1764.9,1764.2,0.72124061]
[1745540203464,5.66735035,1764.5,1764.2,0.72124061]
[1745540203665,5.66735035,1764.5,1764.1,1.54392846]
[1745540203989,4.791,1765.3,1764.5,5.66724361]
[1745540204165,5.66595044,1765.0,1764.6,0.8043]
[1745540204946,5.66551508,1765.1,1764.6,6.47124107]
[1745540205181,5.6657377,1765.0,1764.6,0.8043]
[1745540205855,5.6657377,1765.0,1764.6,6.47129702]
[1745540206054,5.6657377,1765.0,1764.6,0.8043]
[1745540206255,5.6657377,1765.0,1764.6,6.47127674]
[1745540206457,5.6657377,1765.0,1764.6,7.59750441]
[1745540206751,0.73962846,1765.1,1764.6,0.8043]
[1745540206940,5.66620048,1764.9,1764.6,0.8043]
[1745540207879,5.66639192,1764.8,1764.6,0.8043]
[1745540208999,5.66616386,1764.9,1764.6,0.8043]
[1745540210090,5.66649694,1764.8,1764.6,0.8043]
[1745540210481,5.66649694,1764.8,1764.5,4.791]
[1745540210666,5.66681081,1764.7,1764.5,4.791]
[1745540210865,6.49971533,1764.8,1764.5,4.791]
[1745540211107,0.8332,1765.0,1764.5,4.791]
[1745540211402,0.8332,1765.3,1764.8,5.66620353]
[1745540211713,5.66495362,1765.3,1764.8,5.66620353]
[1745540211872,5.66493478,1765.3,1764.8,6.87476556]
[1745540212712,5.66457183,1765.4,1764.9,5.6660265]
[1745540212874,5.66491951,1765.3,1764.8,6.8747377]
[1745540213075,5.66521533,1765.2,1764.8,6.8747377]
[1745540214872,0.73962846,1765.1,1764.7,0.753]
[1745540215072,5.66508044,1765.2,1764.7,6.41949574]
[1745540215267,5.66465423,1765.4,1764.8,5.66618692]
[1745540215565,5.66478537,1765.3,1764.9,5.66589216]
[1745540215984,5.66478537,1765.3,1764.8,5.66616655]
[1745540216185,5.66478537,1765.3,1764.8,6.87473592]
[1745540216417,11.32981388,1765.3,1764.8,6.87473592]
[1745540216709,5.66460158,1765.4,1764.9,5.66581925]
[1745540216913,5.66460158,1765.4,1764.9,10.45681925]
[1745540217506,5.66476694,1765.3,1764.9,4.791]
[1745540217711,5.66476694,1765.3,1764.9,10.45701401]
[1745540218484,5.66476694,1765.3,1764.9,4.791]
[1745540218485,11.32979612,1765.3,1764.9,4.791]
[1745540218815,5.66476694,1765.3,1764.9,4.791]
[1745540218989,5.66476694,1765.3,1764.9,11.62349191]
[1745540220409,8.66381543,1765.6,1764.9,11.62349191]
[1745540220410,6.49015809,1765.7,1765.0,0.7626]
[1745540220713,5.66350293,1765.7,1765.4,0.7626]
[1745540221426,5.66398758,1765.6,1765.4,0.7626]
[1745540222082,5.66331774,1765.8,1765.4,6.42699161]
[1745540222278,6.08213545,1766.1,1765.5,5.6640414]
[1745540222279,5.66270889,1766.0,1765.5,5.6640414]
[1745540222513,5.66270889,1766.0,1765.6,5.66379206]
[1745540222985,5.66270889,1766.0,1765.5,6.48333504]
[1745540223291,5.66301756,1765.9,1765.5,6.48333504]
[1745540225923,5.6631969,1765.8,1765.5,0.8194]
[1745540226083,5.66301756,1765.9,1765.5,0.8194]
[1745540226084,5.66305999,1765.9,1765.5,1.57996245]
[1745540226292,5.66305999,1765.9,1765.5,0.8194]
[1745540227346,5.66305999,1765.9,1765.5,6.48346329]
[1745540228297,1.51342846,1766.3,1765.8,0.7883]
[1745540228496,5.66147314,1766.4,1766.0,5.66237001]
[1745540228833,5.66179347,1766.3,1766.1,0.7638]
[1745540229193,5.66191527,1766.2,1765.9,0.7638]
[1745540229420,5.66179347,1766.3,1765.9,0.7638]
[1745540229421,5.66173548,1766.3,1765.9,0.7638]
[1745540230034,5.66173548,1766.3,1765.9,6.42661881]
[1745540231232,5.66173548,1766.3,1765.9,0.7638]
[1745540231517,5.66155239,1766.3,1765.9,0.7638]
[1745540232019,5.6618888,1766.2,1765.9,0.7638]
[1745540232228,5.66233756,1766.1,1765.9,0.7638]
[1745540232408,7.5340992,1766.2,1765.9,0.7638]
[1745540232799,6.40175508,1766.2,1765.9,0.7638]
[1745540237807,5.66212662,1766.2,1765.9,0.7638]
[1745540239428,5.66220625,1766.1,1765.9,0.7638]
[1745540239602,5.66262703,1766.0,1765.7,5.6191]
[1745540239795,5.66273468,1766.0,1765.7,5.6191]
[1745540240335,5.66219353,1766.1,1765.7,5.6191]
[1745540240637,5.66254161,1766.0,1765.7,5.6191]
[1745540240807,5.66254161,1766.0,1765.7,6.74736718]
[1745540241136,5.66232523,1766.1,1765.7,6.74736718]
[1745540241343,5.66232523,1766.1,1765.7,12.41080951]
[1745540246252,5.6620939,1766.2,1765.7,12.41061534]
[1745540246567,5.66137999,1766.4,1766.0,5.66245758]
[1745540246849,5.66137999,1766.4,1766.1,0.8252]
[1745540247151,5.6611612,1766.5,1766.1,6.48739258]
[1745540247351,5.6611612,1766.5,1766.1,5.6632]
[1745540247706,5.66125944,1766.4,1766.1,5.6632]
[1745540250814,5.661679,1766.3,1766.1,5.6632]
[1745540251583,5.64519952,1766.3,1766.1,5.6632]
[1745540253162,5.64519952,1766.3,1766.1,4.838]
[1745540253369,5.66187294,1766.2,1766.1,4.838]
[1745540254298,5.66174865,1766.3,1766.1,4.838]
[1745540256214,5.66187294,1766.2,1766.1,4.838]
[1745540256414,5.66176257,1766.3,1766.1,4.838]
[1745540260217,5.66187294,1766.2,1766.1,4.838]
[1745540260979,5.66283481,1765.9,1765.8,4.817]
[1745540261383,5.66283481,1765.9,1765.6,0.753]
[1745540262111,5.6626942,1766.0,1765.6,0.753]
[1745540262484,5.6626942,1766.0,1765.6,6.41654356]
[1745540263616,11.32549389,1766.0,1765.6,0.753]
[1745540263820,5.6626942,1766.0,1765.6,1.87639302]
[1745540265715,11.32552138,1766.0,1765.6,1.87639302]
[1745540266223,5.6626942,1766.0,1765.6,1.87639302]
[1745540266530,5.66284533,1765.9,1765.6,1.87639302]
[1745540268133,5.66284533,1765.9,1765.6,0.753]
[1745540268289,5.66370078,1765.7,1765.5,4.817]
[1745540268632,5.66333441,1765.8,1765.5,4.817]
[1745540270339,5.66234175,1766.1,1765.6,6.45365252]
[1745540270544,5.66206076,1766.2,1765.7,7.09856075]
[1745540270750,11.63896004,1766.2,1765.7,7.09856075]
[1745540271240,5.66219938,1766.1,1765.7,7.09856075]
[1745540271944,5.66167488,1766.3,1765.9,5.66270306]
[1745540272142,5.66167488,1766.3,1766.0,0.7907]
[1745540272504,5.66141189,1766.4,1766.0,6.45319226]
[1745540272710,5.66141189,1766.4,1766.0,7.58033257]
[1745540272911,5.66141189,1766.4,1766.0,1.91784031]
[1745540273416,0.7908,1766.5,1766.0,7.58020574]
[1745540273737,5.66111154,1766.5,1766.2,0.7907]
[1745540274516,5.66123862,1766.4,1766.2,0.7907]
[1745540274736,5.66108884,1766.5,1766.2,0.7907]
[1745540275248,5.6609114,1766.5,1766.2,0.7907]
[1745540275533,6.40038426,1766.6,1766.2,0.7907]
[1745540275534,6.40039163,1766.6,1766.2,0.7907]
[1745540275706,5.66093483,1766.5,1766.2,0.7907]
[1745540275907,5.66093483,1766.5,1766.2,1.43598481]
[1745540276107,5.66078379,1766.6,1766.3,0.8184]
[1745540276735,5.66041308,1766.7,1766.3,5.6354]
[1745540277040,5.66041308,1766.7,1766.3,11.29679567]
[1745540278120,11.32099784,1766.7,1766.3,5.6354]
[1745540278422,5.66041308,1766.7,1766.3,6.82964249]
[1745540278619,5.66044967,1766.7,1766.3,6.82964249]
[1745540278831,5.66044967,1766.7,1766.3,12.49118309]
[1745540280727,0.7747,1767.0,1766.4,0.8204]
[1745540280915,5.65910919,1767.1,1766.7,5.66004015]
[1745540281234,5.65910919,1767.1,1766.8,0.8204]
[1745540281654,5.65850682,1767.3,1766.8,0.8204]
[1745540281655,5.658854,1767.2,1766.8,0.8204]
[1745540282319,5.658854,1767.2,1766.8,6.48032377]
[1745540282528,5.65809398,1767.4,1767.0,6.47141797]
[1745540282719,0.8195,1768.0,1767.3,0.8122]
[1745540282911,0.8195,1768.0,1767.5,0.8122]
[1745540283221,5.65623951,1768.0,1767.6,5.65735432]
[1745540283422,5.6559078,1768.1,1767.7,0.794]
[1745540283642,5.6559078,1768.1,1767.7,1.43913543]
[1745540283850,5.6559078,1768.1,1767.7,7.09607784]
[1745540284009,5.6559078,1768.1,1767.7,1.43913543]
[1745540284214,0.7651,1768.4,1767.8,5.65658582]
[1745540284444,5.65481408,1768.5,1768.0,0.8081]
[1745540284647,5.65501665,1768.4,1768.0,1.37051]
[1745540284848,5.65507659,1768.4,1768.0,1.37051]
[1745540285031,5.65362916,1768.8,1768.2,5.65533098]
[1745540285210,1.96967785,1768.9,1768.0,2.11013846]
[1745540285211,5.65436223,1768.6,1768.1,6.47308058]
[1745540285947,5.65468235,1768.5,1768.1,0.8175]
[1745540286255,5.65468235,1768.5,1768.1,1.52110046]
[1745540286630,5.65432978,1768.6,1768.1,7.17683601]
[1745540287251,5.65456587,1768.5,1768.1,7.17683601]
[1745540287457,5.6542626,1768.6,1768.1,7.17683601]
[1745540288360,5.65465828,1768.5,1768.1,1.52110046]
[1745540288517,5.65432308,1768.6,1768.1,1.52110046]
[1745540288823,5.65432308,1768.6,1768.1,7.1767566]
[1745540289022,5.65432308,1768.6,1768.2,0.71767566]
[1745540289640,5.6549907,1768.4,1768.1,0.8175]
[1745540289832,5.65532695,1768.3,1768.0,0.56241]
[1745540290162,5.65562413,1768.2,1767.9,5.6116]
[1745540290956,5.65599746,1768.1,1767.9,5.6116]
[1745540291549,5.65560871,1768.2,1767.9,5.6116]
[1745540292053,5.65579937,1768.1,1767.9,5.6116]
[1745540292222,5.65564267,1768.2,1767.9,5.6116]
[1745540292417,6.39495599,1768.3,1767.9,5.6116]
[1745540292670,5.65532753,1768.3,1767.9,6.73841591]
[1745540295624,5.65486679,1768.4,1768.0,5.65609624]
[1745540296473,5.65470923,1768.5,1768.0,5.65589193]
[1745540296638,5.65470923,1768.5,1768.1,5.65561901]
[1745540297131,5.65470923,1768.5,1768.2,0.8084]
[1745540297339,5.65436404,1768.6,1768.2,7.11026571]
[1745540297933,5.65453264,1768.5,1768.2,1.4548019]
[1745540298321,5.65453264,1768.5,1768.2,0.8084]
[1745540298920,5.65438386,1768.6,1768.2,0.8084]
[1745540299150,5.65403601,1768.7,1768.2,0.8084]
[1745540299552,5.65442315,1768.6,1768.2,0.8084]
[1745540300139,5.65412159,1768.7,1768.2,6.463638]
[1745540300427,0.00858,1769.0,1768.6,5.65391288]
[1745540300660,0.00858,1769.0,1768.7,6.46009367]
[1745540301030,5.65327293,1768.9,1768.7,0.8063]
[1745540301257,5.66165591,1769.0,1768.7,0.8063]
[1745540301771,5.66165591,1769.0,1768.7,1.45234592]
[1745540302564,5.65323939,1768.9,1768.7,0.8063]
[1745540305388,5.66162553,1769.0,1768.7,0.8063]
[1745540305593,5.65324464,1768.9,1768.7,0.8063]
[1745540307003,5.66162553,1769.0,1768.7,0.8063]
[1745540307207,0.00858,1769.0,1768.7,5.6423]
[1745540307348,0.00858,1769.0,1768.9,6.41673082]
[1745540307890,0.00858,1769.0,1768.9,0.7635]
[1745540308261,5.66168028,1769.0,1768.6,0.7635]
[1745540308594,5.66168028,1769.0,1768.6,6.41749756]
[1745540308761,5.66168028,1769.0,1768.7,0.64174976]
[1745540308961,11.3148557,1769.0,1768.7,0.64174976]
[1745540309298,5.65348435,1768.9,1768.6,0.7635]
[1745540311095,5.66157721,1769.0,1768.6,0.7635]
[1745540311303,5.65324464,1768.9,1768.6,0.7635]
[1745540313200,5.65418975,1768.6,1768.5,4.836]
[1745540313387,5.65418975,1768.6,1768.3,0.10340843]
[1745540313559,5.65418975,1768.6,1768.3,0.68006927]
[1745540313762,5.65463597,1768.5,1768.3,0.68006927]
[1745540314162,5.65482922,1768.4,1768.3,0.10340843]
[1745540314403,5.65482922,1768.4,1768.2,5.6632]
[1745540315457,5.6547238,1768.5,1768.2,5.6632]
[1745540315668,5.65485247,1768.4,1768.2,5.6632]
[1745540315869,5.65514901,1768.3,1768.2,6.22952]
[1745540316299,5.65502764,1768.4,1768.2,6.22952]
[1745540319778,5.65463637,1768.5,1768.2,6.22952]
[1745540320312,5.65430307,1768.6,1768.2,11.88485108]
[1745540320474,5.65430307,1768.6,1768.3,1.18848511]
[1745540320877,5.65452722,1768.5,1768.3,1.18848511]
[1745540321593,5.65357997,1768.8,1768.3,1.18848511]
[1745540321794,5.65470142,1768.5,1768.3,1.18848511]
[1745540322109,5.65470142,1768.5,1768.2,5.6632]
[1745540323483,5.65355042,1768.8,1768.2,5.6632]
[1745540323682,5.65467755,1768.5,1768.2,5.6632]
[1745540325611,5.65495565,1768.4,1768.2,5.6632]
[1745540325981,5.65514901,1768.3,1768.2,5.6632]
[1745540326483,5.65514901,1768.3,1768.2,4.835]
[1745540329126,5.65506129,1768.4,1768.2,4.835]
[1745540329693,11.31019638,1768.4,1768.2,4.835]
[1745540329898,5.65506129,1768.4,1768.2,4.835]
[1745540330200,5.65506129,1768.4,1767.9,4.848]
[1745540330201,5.65610859,1768.0,1767.9,4.848]
[1745540330934,6.44560859,1768.0,1767.9,4.848]
[1745540331123,5.65700084,1767.8,1767.6,21.81]
[1745540331294,5.65700084,1767.8,1767.6,7.10654]
[1745540331495,5.6570685,1767.7,1767.6,4.848]
[1745540332212,5.65693346,1767.8,1767.6,4.848]
[1745540332741,5.6570685,1767.7,1767.6,4.848]
[1745540333539,5.6570685,1767.7,1767.5,0.7754]
[1745540334385,5.65697374,1767.8,1767.5,0.7754]
[1745540334703,5.65708502,1767.7,1767.5,0.7754]
[1745540335505,5.65694616,1767.8,1767.5,0.7754]
[1745540335708,11.31401246,1767.8,1767.5,0.7754]
[1745540336150,5.65694616,1767.8,1767.5,0.7754]
[1745540336357,5.65694616,1767.8,1767.5,1.41873687]
[1745540336535,5.65708475,1767.7,1767.5,0.7754]
[1745540339030,5.65687389,1767.8,1767.5,0.7754]
[1745540339352,5.65633482,1768.0,1767.6,5.65725572]
[1745540339644,0.7822,1768.6,1768.1,5.65576264]
[1745540339807,0.74820846,1769.0,1768.2,6.36662846]
[1745540339808,6.43592457,1768.8,1768.2,6.36662846]
[1745540340009,0.00858,1769.0,1768.5,0.7789]
[1745540340235,5.66163202,1769.0,1768.6,10.50316162]
[1745540340438,5.66163202,1769.0,1768.6,4.849]
[1745540340643,5.65324019,1768.9,1768.6,4.849]
[1745540340851,5.65324019,1768.9,1768.7,0.4849]
[1745540344135,0.00858,1769.0,1768.7,0.4849]
[1745540344340,0.00858,1769.0,1768.8,1.49582846]
[1745540344651,0.00858,1769.0,1768.9,5.65323082]
[1745540347523,0.00858,1769.0,1768.9,6.45043082]
[1745540347856,0.00858,1769.0,1768.9,7.73476503]
[1745540348254,0.00858,1769.0,1768.9,10.73476503]
[1745540348442,1e-08,1769.0,1768.9,11.57776685]
[1745540348648,0.5,1769.8,1769.6,0.7722]
[1745540350163,6.15061672,1769.8,1769.6,0.7722]
[1745540350341,0.5,1769.8,1769.6,0.7722]
[1745540351333,6.1503719,1769.8,1769.6,0.7722]
[1745540351533,5.65067525,1769.7,1769.6,0.7722]
[1745540351954,6.15048169,1769.8,1769.6,0.7722]
[1745540352265,0.5,1769.8,1769.6,0.7722]
[1745540352431,0.5,1769.8,1769.6,1.33322]
[1745540353448,6.15050079,1769.8,1769.6,1.33322]
[1745540353649,6.15050079,1769.8,1769.5,4.838]
[1745540357075,5.65092312,1769.7,1769.5,4.838]
[1745540357446,5.65099457,1769.6,1769.5,4.838]
[1745540358061,5.65156437,1769.5,1769.2,5.6492]
[1745540358274,5.65195274,1769.3,1769.2,4.836]
[1745540358485,5.65182524,1769.4,1769.2,4.836]
[1745540358840,5.65195274,1769.3,1769.2,4.836]
[1745540359778,5.65195274,1769.3,1768.9,1.38770757]
[1745540359779,5.65255008,1769.2,1768.9,6.22370757]
[1745540359971,11.30510016,1769.2,1768.9,6.22370757]
[1745540360137,5.65255008,1769.2,1768.9,6.22370757]
[1745540360338,5.65254393,1769.2,1768.9,6.22370757]
[1745540360666,5.65291124,1769.0,1768.9,4.93937336]
[1745540360867,5.65324441,1768.9,1768.6,5.6676]
[1745540361580,5.65356856,1768.8,1768.6,5.6676]
[1745540361742,4.74163765,1768.9,1768.6,5.6676]
[1745540362142,5.65371493,1768.8,1768.6,4.836]
[1745540362379,5.65387007,1768.7,1768.6,4.836]
[1745540362562,5.65438285,1768.6,1768.3,4.836]
[1745540364875,6.4196059,1768.7,1768.3,10.49111148]
[1745540365074,6.4196059,1768.7,1768.3,4.836]
[1745540365274,5.65420459,1768.6,1768.3,5.88512809]
[1745540365480,6.41966598,1768.7,1768.3,11.5402326]
[1745540366553,5.65342795,1768.9,1768.5,6.42740903]
[1745540367277,5.65355418,1768.8,1768.5,0.7731]
[1745540367875,5.65394387,1768.7,1768.3,12.34627817]
[1745540368075,6.41944387,1768.7,1768.4,1.23462782]
[1745540368293,6.41944387,1768.7,1768.3,12.34644706]
[1745540368990,6.42883578,1768.9,1768.4,5.65479653]
[1745540369176,5.65355752,1768.8,1768.4,5.65479653]
[1745540369977,6.42882263,1768.9,1768.4,5.65479653]
[1745540370372,5.65312631,1769.0,1768.6,0.7797]
[1745540370908,5.65342652,1768.9,1768.6,0.7797]
[1745540371057,5.65357765,1768.8,1768.6,0.7797]
[1745540371258,0.7557,1769.1,1768.4,0.7797]
[1745540371487,5.65373318,1768.8,1768.4,6.43452759]
[1745540371691,11.3075797,1768.8,1768.4,2.65112985]
[1745540374392,5.65357051,1768.8,1768.4,8.30594636]
[1745540376493,11.30682083,1768.9,1768.4,2.65112985]
[1745540376698,5.65359373,1768.8,1768.4,8.30580194]
[1745540376864,5.65359373,1768.8,1768.5,0.83058019]
[1745540378859,5.65335619,1768.9,1768.5,0.83058019]
[1745540379090,5.65335619,1768.9,1768.4,8.30575094]
[1745540379439,0.814,1769.3,1768.7,0.73962846]
[1745540379584,5.65143585,1769.5,1769.1,7.14567386]
[1745540379895,11.30301628,1769.5,1769.1,1.46806739]
[1745540380098,5.65143585,1769.5,1769.1,1.46806739]
[1745540380482,5.65170616,1769.4,1769.1,1.46806739]
[1745540380801,0.814,1769.6,1768.9,0.7749]
[1745540380802,5.65227221,1769.2,1768.9,0.7749]
[1745540380991,5.65227221,1769.2,1768.8,10.47040665]
[1745540380992,5.65227221,1769.2,1768.8,4.817]
[1745540381160,5.65275529,1769.1,1768.8,4.817]
[1745540381362,5.65247771,1769.2,1768.8,4.817]
[1745540381595,5.65247771,1769.2,1768.8,11.67935308]
[1745540381968,5.65186495,1769.4,1768.9,7.1456301]
[1745540382293,5.65186495,1769.4,1769.0,5.6529009]
[1745540382491,5.6514868,1769.5,1769.1,5.65254607]
[1745540382662,5.65163751,1769.4,1768.9,1.49262846]
[1745540382862,5.65163751,1769.4,1769.0,5.6528874]
[1745540383076,5.65163751,1769.4,1769.1,0.56528874]
[1745540384775,5.65138584,1769.5,1769.1,0.56528874]
[1745540384776,5.65144677,1769.5,1769.1,0.56528874]
[1745540384978,5.65144677,1769.5,1769.2,0.7989]
[1745540386517,11.30302955,1769.5,1769.2,0.7989]
[1745540386817,5.6516845,1769.4,1769.2,0.7989]
[1745540387014,5.65099457,1769.6,1769.0,0.8196]
[1745540387177,5.65209054,1769.3,1769.0,0.8196]
[1745540387789,5.65232022,1769.2,1768.8,6.02585642]
[1745540388004,5.65260724,1769.1,1768.8,6.02585642]
[1745540388712,5.65243632,1769.2,1768.8,6.02585642]
[1745540392513,5.65241874,1769.2,1768.9,0.60258564]
[1745540393220,5.65197226,1769.3,1768.9,6.25574334]
[1745540393418,5.65197226,1769.3,1769.0,0.803]
[1745540393605,5.65227487,1769.2,1769.0,0.803]
[1745540395229,11.3042204,1769.3,1769.0,0.803]
[1745540395531,5.65197226,1769.3,1769.0,0.803]
[1745540395931,5.65182857,1769.4,1769.0,0.803]
[1745540396234,5.65182857,1769.4,1769.0,6.45579485]
[1745540396436,5.65182857,1769.4,1769.1,0.64557949]
[1745540396728,5.65150878,1769.5,1769.1,0.64557949]
[1745540397135,11.30312431,1769.5,1769.1,0.64557949]
[1745540397438,5.65164122,1769.4,1769.1,0.64557949]
[1745540398736,0.8333,1769.6,1769.3,0.7848]
[1745540398737,5.65111787,1769.6,1769.3,0.7848]
[1745540400137,5.65118648,1769.6,1769.3,0.7848]
[1745540400835,0.5,1769.8,1769.3,2.16813356]
[1745540401051,0.5,1769.8,1769.6,0.7791]
[1745540401204,0.5,1769.8,1769.6,6.43008161]
[1745540401399,0.5,1769.8,1769.6,0.7791]
[1745540401605,0.5,1769.8,1769.6,1.42212159]
[1745540403136,0.5,1769.8,1769.7,5.65067525]
[1745540403340,0.5,1769.8,1769.6,6.42993265]
[1745540404122,0.5,1769.8,1769.6,0.7791]
[1745540404754,0.5,1769.8,1769.6,6.42991189]
[1745540405257,0.5,1769.8,1769.7,6.40987525]
[1745540405459,0.5,1769.8,1769.7,8.09754396]
[1745540406570,5.6480569,1770.6,1770.2,5.64887304]
[1745540406871,6.04899483,1770.7,1770.3,6.4489747]
[1745540407033,6.04911164,1770.7,1770.4,0.64489747]
[1745540407368,0.4015063,1770.7,1770.4,0.64489747]
[1745540408127,0.4015063,1770.7,1770.5,0.7964]
[1745540408454,0.4015063,1770.7,1770.5,6.44435093]
[1745540408975,0.4015063,1770.7,1770.5,11.23635093]
[1745540409133,0.4015063,1770.7,1770.5,6.71203509]
[1745540409331,0.4015063,1770.7,1770.5,5.5884]
[1745540409670,0.4015063,1770.7,1770.5,11.23651681]
[1745540410375,0.4015063,1770.7,1770.6,5.647803]
[1745540410569,0.4015063,1770.7,1770.6,9.444203]
[1745540410867,0.51140503,1771.0,1770.9,9.43284623]
[1745540411064,0.51140503,1771.0,1770.9,14.22484623]
[1745540411230,0.51140503,1771.0,1770.9,14.32810284]
[1745540413235,0.25296175,1771.1,1771.0,8.64652738]
[1745540413436,0.25296175,1771.1,1771.0,12.46256964]
[1745540419040,0.124382,1771.1,1771.0,13.2021981]
[1745540419345,1e-08,1771.1,1771.0,13.7521981]
[1745540421482,1e-08,1771.1,1771.0,13.01256964]
[1745540421779,6.4587162,1772.0,1771.4,0.7653]
[1745540421949,6.4587162,1772.0,1771.5,10.43278027]
[1745540422148,6.4587162,1772.0,1771.5,16.07746989]
[1745540422471,6.4587162,1772.0,1771.5,10.43268962]
[1745540422671,6.4587162,1772.0,1771.5,10.43268493]
[1745540422849,5.64367159,1771.9,1771.5,10.43268493]
[1745540423182,5.64426279,1771.8,1771.5,4.788]
[1745540423400,0.7619,1771.7,1771.5,4.788]
[1745540423699,5.64426279,1771.8,1771.5,4.788]
[1745540423861,6.45141267,1771.9,1771.5,4.788]
[1745540424266,0.8076,1771.9,1771.5,10.4329234]
[1745540424525,0.8076,1771.9,1771.6,6.6876626]
[1745540424850,0.8076,1771.9,1771.6,1.04329234]
[1745540425188,5.64418488,1771.8,1771.5,4.788]
[1745540425354,5.64443378,1771.7,1771.5,4.788]
[1745540425554,5.64418176,1771.8,1771.5,4.788]
[1745540426186,6.45138206,1771.9,1771.5,10.43277476]
[1745540426552,0.8076,1771.9,1771.5,4.788]
[1745540426786,0.8076,1771.9,1771.6,0.4788]
[1745540427088,0.8076,1771.9,1771.6,6.12340291]
[1745540430601,0.8076,1771.9,1771.6,0.4788]
[1745540430808,6.45142901,1771.9,1771.6,0.4788]
[1745540434015,0.782,1772.1,1771.8,5.64397787]
[1745540434314,0.782,1772.1,1771.8,5.79814564]
[1745540435019,5.64350063,1772.0,1771.8,0.15416777]
[1745540435174,5.64365934,1771.9,1771.8,0.15416777]
[1745540435369,6.40895934,1771.9,1771.5,10.43281296]
[1745540435671,6.40895934,1771.9,1771.5,12.1648229]
[1745540435900,6.40895934,1771.9,1771.6,0.15602308]
[1745540436085,0.7653,1771.9,1771.6,5.80057728]
[1745540436281,0.7653,1771.9,1771.6,5.80061732]
[1745540436702,6.40905056,1771.9,1771.6,0.15602308]
[1745540436906,6.41463383,1772.2,1771.8,5.64379985]
[1745540437212,6.41463383,1772.2,1771.9,0.15493904]
[1745540437412,0.7719,1772.2,1771.9,0.15493904]
[1745540438576,0.7719,1772.2,1771.9,5.79855978]
[1745540438904,0.7719,1772.2,1771.9,1.29916884]
[1745540440089,0.7719,1772.2,1771.9,6.94282018]
[1745540440288,0.9015063,1772.5,1772.0,0.8272]
[1745540440622,0.9015063,1772.5,1772.3,5.64224834]
[1745540440926,0.9015063,1772.5,1772.3,6.77071272]
[1745540441122,0.9015063,1772.5,1772.4,0.15353865]
[1745540441426,0.9015063,1772.5,1772.4,5.7956059]
[1745540442092,0.9015063,1772.5,1772.4,6.5746059]
[1745540443500,0.9015063,1772.5,1772.4,0.15353865]
[1745540444825,7.32505524,1772.5,1772.4,0.15353865]
[1745540445334,1.6833063,1772.5,1772.4,0.15353865]
[1745540446487,7.32505524,1772.5,1772.4,0.15353865]
[1745540446726,8.62172407,1772.5,1772.4,0.15353865]
[1745540446882,5.64232581,1772.4,1772.0,4.91919251]
[1745540447125,5.64232581,1772.4,1772.1,0.14312479]
[1745540447323,7.3252216,1772.5,1772.1,0.14312479]
[1745540447554,12.96726407,1772.5,1772.1,0.14312479]
[1745540447756,5.64208249,1772.4,1772.1,0.14312479]
[1745540448921,5.64270398,1772.2,1772.1,0.14312479]
[1745540449235,6.45600398,1772.2,1772.1,0.14312479]
[1745540449467,0.8133,1772.2,1772.1,0.14312479]
[1745540449829,0.8133,1772.2,1771.8,8.64374151]
[1745540450025,5.64226632,1772.4,1772.0,6.39321225]
[1745540450225,6.54340127,1772.5,1771.9,5.6434537]
[1745540450226,0.9015063,1772.5,1771.9,5.6434537]
[1745540450526,0.8133,1772.3,1771.9,5.6434537]
[1745540450763,6.45580902,1772.3,1771.9,5.6434537]
[1745540450918,0.8133,1772.3,1772.0,6.20748739]
[1745540451125,7.33504725,1772.5,1772.1,5.64301346]
[1745540451463,0.9015063,1772.5,1772.3,5.64225633]
[1745540451961,0.9015063,1772.5,1772.4,0.13132418]